bitfinex/quotes_BTCUSD_20240607
["timestamp","ask_amount","ask_price","bid_price","bid_amount"]
[1717786956745,0.99451825,68961.0,68960.0,0.0096]
[1717786957160,0.97371876,68961.0,68960.0,0.0096]
[1717786957363,0.97371876,68961.0,68960.0,0.0086]
[1717786957364,0.95871876,68961.0,68960.0,0.0086]
[1717786957588,0.97271876,68961.0,68960.0,0.0086]
[1717786957818,0.65885859,68961.0,68960.0,0.0086]
[1717786958063,0.64485859,68961.0,68960.0,0.2395]
[1717786958549,0.159009,68961.0,68960.0,0.2395]
[1717786958771,0.22442166,68961.0,68960.0,0.2595]
[1717786959249,0.21040066,68971.0,68970.0,0.02]
[1717786961053,0.14499,68970.0,68969.0,0.2391]
[1717786961256,0.14499,68970.0,68969.0,0.2591]
[1717786962343,0.21040266,68970.0,68969.0,0.2391]
[1717786962722,0.14499,68970.0,68969.0,0.2591]
[1717786963353,0.14499,68970.0,68969.0,0.2631]
[1717786963556,0.14499,68970.0,68969.0,0.2611]
[1717786963972,0.14499,68970.0,68969.0,0.2631]
[1717786964228,0.21040266,68970.0,68969.0,0.2431]
[1717786964435,0.21040266,68970.0,68969.0,0.2631]
[1717786965099,0.14499,68970.0,68969.0,0.2631]
[1717786965289,0.000946,68971.0,68970.0,0.4565]
[1717786965493,0.000946,68971.0,68970.0,0.2565]
[1717786965913,0.145934,68971.0,68970.0,0.2565]
[1717786966134,0.145934,68971.0,68970.0,0.284981]
[1717786966569,0.000946,68971.0,68970.0,0.284981]
[1717786966774,0.000946,68971.0,68881.0,0.24897038]
[1717786966977,0.000946,68971.0,68864.0,0.72343857]
[1717786966978,0.07222824,68967.0,68954.0,0.14441893]
[1717786967166,0.07222824,68967.0,68966.0,0.2147]
[1717786967392,0.07222824,68967.0,68966.0,0.38058893]
[1717786967826,0.07222824,68967.0,68966.0,0.2147]
[1717786968040,0.001946,68971.0,68966.0,0.35911893]
[1717786968250,0.07222824,68967.0,68966.0,0.2147]
[1717786968930,0.07222824,68967.0,68966.0,0.2207]
[1717786968931,0.07322824,68967.0,68966.0,0.2207]
[1717786969362,0.07322824,68967.0,68966.0,0.24277]
[1717786969611,0.07322824,68967.0,68966.0,0.2207]
[1717786969821,0.07422824,68967.0,68966.0,0.2534]
[1717786970077,0.41822424,68967.0,68966.0,0.2534]
[1717786970292,0.000946,68971.0,68968.0,0.0822]
[1717786970546,0.14499,68970.0,68969.0,0.1652]
[1717786971216,0.14499,68970.0,68969.0,0.19064]
[1717786971639,0.14499,68970.0,68969.0,0.1652]
[1717786971853,0.000946,68971.0,68969.0,0.1652]
[1717786972072,0.07222824,68970.0,68969.0,0.1652]
[1717786972295,0.07222824,68970.0,68969.0,0.1672]
[1717786973393,0.000946,68971.0,68970.0,0.0759]
[1717786973618,0.1999189,68996.0,68970.0,0.0759]
[1717786973619,0.144955,68987.0,68973.0,0.235]
[1717786973854,0.144955,68987.0,68970.0,0.19286309]
[1717786973855,0.43336945,68985.0,68977.0,0.235]
[1717786974087,0.43336945,68985.0,68976.0,0.2147]
[1717786974088,0.07222824,68979.0,68978.0,0.38114992]
[1717786974308,0.07222824,68979.0,68978.0,0.37941893]
[1717786975853,0.41819924,68979.0,68978.0,0.241]
[1717786976071,0.61811814,68979.0,68978.0,0.006]
[1717786976771,0.73811814,68979.0,68978.0,0.006]
[1717786977044,0.75410448,68979.0,68978.0,0.013]
[1717786977250,0.77310448,68979.0,68978.0,0.007]
[1717786977460,0.77310448,68979.0,68973.0,0.1542]
[1717786977461,0.4449009,68974.0,68973.0,0.1542]
[1717786977700,0.244982,68974.0,68973.0,0.1542]
[1717786978103,0.4449009,68974.0,68973.0,0.1542]
[1717786978427,0.244982,68974.0,68973.0,0.1542]
[1717786978629,0.144982,68974.0,68973.0,0.1542]
[1717786979949,0.153982,68974.0,68973.0,0.1542]
[1717786980766,0.144994,68968.0,68967.0,0.2416]
[1717786980970,0.21722224,68968.0,68967.0,0.2416]
[1717786982159,0.31922224,68968.0,68967.0,0.2416]
[1717786982354,0.29672796,68968.0,68967.0,0.2416]
[1717786982583,0.29772796,68968.0,68967.0,0.2416]
[1717786983315,0.29772796,68968.0,68951.0,0.2147]
[1717786983316,0.245009,68961.0,68960.0,0.2332]
[1717786983524,0.003,68968.0,68960.0,0.40093893]
[1717786983731,0.003,68968.0,68962.0,0.14441893]
[1717786983967,0.07222824,68986.0,68967.0,0.2332]
[1717786984204,0.07222824,68986.0,68968.0,0.29981841]
[1717786984205,0.07222824,68973.0,68968.0,0.29981841]
[1717786984413,0.144969,68980.0,68970.0,0.1546]
[1717786984549,0.07222824,68979.0,68972.0,0.1546]
[1717786984762,0.07222824,68979.0,68974.0,0.1546]
[1717786984990,0.07222824,68979.0,68975.0,0.14827575]
[1717786985231,0.07222824,68979.0,68977.0,0.1541]
[1717786985418,0.07222824,68979.0,68978.0,0.20338082]
[1717786985632,0.07322824,68979.0,68978.0,0.20338082]
[1717786986040,0.07422824,68979.0,68977.0,0.1541]
[1717786986246,0.07322824,68979.0,68977.0,0.1541]
[1717786986456,0.144973,68978.0,68977.0,0.1541]
[1717786986665,0.07222824,68979.0,68977.0,0.1541]
[1717786986910,0.07222824,68979.0,68978.0,0.001]
[1717786987116,0.07222824,68979.0,68978.0,0.04462]
[1717786987922,0.07222824,68979.0,68977.0,0.1541]
[1717786988138,0.07222824,68979.0,68978.0,0.15021724]
[1717786988345,0.07222824,68979.0,68978.0,0.14441893]
[1717786988765,0.144959,68985.0,68978.0,0.14441893]
[1717786989066,0.07222824,68979.0,68978.0,0.14441893]
[1717786989275,0.07222824,68979.0,68978.0,0.39681082]
[1717786989733,0.07222824,68979.0,68978.0,0.39781082]
[1717786990806,0.07222824,68979.0,68978.0,0.36011893]
[1717786991439,0.21719924,68979.0,68978.0,0.2157]
[1717786991654,0.25247934,68979.0,68978.0,0.001]
[1717786992117,0.1802511,68979.0,68978.0,0.001]
[1717786992325,0.0352801,68979.0,68978.0,0.74329193]
[1717786992539,0.05531558,68998.0,68983.0,0.1584]
[1717786992766,0.07222824,69001.0,68993.0,0.2958]
[1717786993009,0.07222824,69001.0,68993.0,0.35911893]
[1717786993252,0.144899,69014.0,68997.0,0.14441893]
[1717786993450,0.07222824,69003.0,69001.0,0.1584]
[1717786993660,0.07222824,69003.0,68994.0,0.02958]
[1717786993661,0.07222824,69003.0,68995.0,0.1562]
[1717786993871,0.07222824,68996.0,68995.0,0.30061893]
[1717786994086,0.07222824,68996.0,68995.0,0.1562]
[1717786994296,0.21716324,68996.0,68995.0,0.1562]
[1717786994541,0.31716324,68996.0,68995.0,0.1562]
[1717786994764,0.144938,68995.0,68994.0,0.10958]
[1717786994984,0.144938,68995.0,68994.0,0.02958]
[1717786995212,0.144938,68995.0,68990.0,0.1562]
[1717786995213,0.144946,68991.0,68990.0,0.1562]
[1717786995446,0.07222824,68996.0,68990.0,0.30061893]
[1717786995669,0.07222824,68996.0,68993.0,0.2147]
[1717786995893,0.07222824,68996.0,68994.0,0.05153189]
[1717786996342,0.144942,68993.0,68990.0,0.1562]
[1717786996566,0.001,68991.0,68990.0,0.30661893]
[1717786996998,0.000946,68995.0,68990.0,0.30061893]
[1717786997218,0.000946,68995.0,68991.0,0.03833189]
[1717786997429,0.145884,68995.0,68991.0,0.03833189]
[1717786998118,0.145884,68995.0,68992.0,0.04156508]
[1717786998366,0.1,68990.0,68988.0,0.0767]
[1717786998582,0.1,68990.0,68983.0,0.1517]
[1717786998583,0.07222824,68989.0,68983.0,0.1517]
[1717786998790,0.144957,68986.0,68983.0,0.02429203]
[1717786999000,0.07222824,68989.0,68973.0,0.1517]
[1717786999001,0.1,68983.0,68973.0,0.1517]
[1717786999202,0.07222824,68978.0,68974.0,0.14441893]
[1717786999405,0.07222824,68978.0,68975.0,0.03730189]
[1717786999608,0.07222824,68978.0,68976.0,0.14441893]
[1717787000259,0.07222824,68978.0,68975.0,0.03730189]
[1717787000501,0.24498,68975.0,68973.0,0.014]
[1717787000712,0.24498,68975.0,68973.0,0.006]
[1717787001355,0.144982,68974.0,68973.0,0.006]
[1717787001564,0.1,68975.0,68969.0,0.0175166]
[1717787001565,0.144988,68972.0,68969.0,0.0175166]
[1717787001778,0.07222824,68970.0,68969.0,0.0175166]
[1717787001984,0.07222824,68970.0,68960.0,0.1517]
[1717787001985,0.1,68969.0,68960.0,0.1517]
[1717787002291,0.07222824,68970.0,68960.0,0.1517]
[1717787002292,0.07222824,68970.0,68961.0,0.00579917]
[1717787003319,0.07212907,68970.0,68961.0,0.00579917]
[1717787003539,0.001,68969.0,68968.0,0.00786]
[1717787003753,0.07212907,68970.0,68968.0,0.00086]
[1717787005261,0.07312907,68970.0,68968.0,0.00786]
[1717787005690,0.07412907,68970.0,68968.0,0.01486]
[1717787007266,0.244992,68969.0,68968.0,0.01486]
[1717787008148,0.244992,68969.0,68968.0,0.03254319]
[1717787008369,0.1,68969.0,68968.0,0.03254319]
[1717787008625,0.1,68969.0,68968.0,0.00086]
[1717787008836,0.101,68969.0,68968.0,0.01486]
[1717787009042,0.102,68969.0,68968.0,0.01486]
[1717787009262,0.146992,68969.0,68968.0,0.01486]
[1717787009523,0.4469109,68969.0,68968.0,0.01486]
[1717787009750,0.4669109,68969.0,68968.0,0.01486]
[1717787009931,0.494291,68969.0,68968.0,0.01486]
[1717787010199,0.494291,68969.0,68968.0,0.00086]
[1717787010200,0.472291,68969.0,68968.0,0.00086]
[1717787010412,0.492291,68969.0,68968.0,0.00086]
[1717787011068,0.492291,68969.0,68968.0,0.00786]
[1717787011069,1.52653139,68969.0,68968.0,0.00786]
[1717787011288,1.52653139,68969.0,68934.0,0.18316973]
[1717787011289,0.2999189,68935.0,68934.0,0.0002]
[1717787011511,0.245064,68935.0,68934.0,0.0002]
[1717787012176,0.145055,68940.0,68934.0,0.14461893]
[1717787012406,0.17222824,68951.0,68939.0,0.1718]
[1717787012407,0.1,68950.0,68939.0,0.1718]
[1717787012606,0.145037,68948.0,68935.0,0.40151451]
[1717787013025,0.145037,68948.0,68936.0,0.00580113]
[1717787013250,0.145037,68948.0,68935.0,0.40151451]
[1717787013727,0.07222824,68938.0,68936.0,0.05907345]
[1717787013937,0.07222824,68938.0,68937.0,0.14441893]
[1717787015835,0.07322824,68938.0,68937.0,0.14441893]
[1717787016260,0.07222824,68938.0,68937.0,0.14441893]
[1717787016460,0.07322824,68938.0,68937.0,0.15041893]
[1717787016635,0.07422824,68938.0,68937.0,0.15641893]
[1717787016842,0.001,68938.0,68937.0,0.19466914]
[1717787017209,0.07222824,68942.0,68937.0,0.18866914]
[1717787017410,0.001,68938.0,68937.0,0.15041893]
[1717787017617,0.002,68938.0,68937.0,0.15641893]
[1717787018494,0.002,68938.0,68937.0,0.012]
[1717787018712,0.101,68938.0,68937.0,0.006]
[1717787018899,0.683457,68938.0,68937.0,0.006]
[1717787019103,0.8843759,68938.0,68937.0,0.012]
[1717787019300,0.8833759,68938.0,68937.0,0.006]
[1717787019706,0.245064,68935.0,68934.0,0.0002]
[1717787019936,0.31729224,68935.0,68934.0,0.0002]
[1717787020300,0.51721114,68935.0,68934.0,0.0002]
[1717787020503,0.31729224,68935.0,68934.0,0.0002]
[1717787021831,0.245066,68934.0,68931.0,0.00861]
[1717787022017,0.145066,68934.0,68931.0,0.00861]
[1717787023395,0.145066,68934.0,68933.0,0.01161]
[1717787024241,0.145066,68934.0,68933.0,0.01361]
[1717787025113,0.2,68947.0,68934.0,0.1622]
[1717787025337,0.1,68948.0,68935.0,0.18487282]
[1717787025545,0.1,68952.0,68935.0,0.18724415]
[1717787025760,0.1,68954.0,68935.0,0.18724415]
[1717787025989,0.145017,68957.0,68946.0,0.2446]
[1717787026228,0.145017,68957.0,68947.0,0.1467915]
[1717787026451,0.2,68961.0,68947.0,0.1467915]
[1717787026452,0.21724824,68956.0,68947.0,0.1467915]
[1717787026688,0.145023,68955.0,68947.0,0.14441893]
[1717787026936,0.145023,68955.0,68948.0,0.06038189]
[1717787027143,0.146024,68954.0,68949.0,0.14441893]
[1717787027342,0.145026,68953.0,68950.0,0.14441893]
[1717787027578,0.145026,68953.0,68951.0,0.14441893]
[1717787028201,0.145028,68952.0,68951.0,0.14441893]
[1717787030618,0.001,68952.0,68951.0,0.14441893]
[1717787031079,0.001,68952.0,68940.0,0.02178906]
[1717787031305,0.07222824,68941.0,68934.0,0.02178906]
[1717787031533,0.07222824,68941.0,68937.0,0.14527893]
[1717787031755,0.07222824,68941.0,68937.0,0.00086]
[1717787032218,0.145057,68938.0,68937.0,0.00086]
[1717787033017,0.3449759,68938.0,68937.0,0.00086]
[1717787033244,0.145057,68938.0,68937.0,0.00786]
[1717787033463,0.145057,68938.0,68937.0,0.00086]
[1717787033464,0.5649759,68938.0,68937.0,0.00086]
[1717787033678,0.5659759,68938.0,68937.0,0.00786]
[1717787033917,0.5469759,68938.0,68937.0,0.01386]
[1717787034126,0.5659759,68938.0,68937.0,0.00686]
[1717787034357,0.5659759,68938.0,68937.0,0.00086]
[1717787034358,0.5449759,68938.0,68937.0,0.00086]
[1717787034562,0.5649759,68938.0,68937.0,0.00086]
[1717787034800,0.5659759,68938.0,68937.0,0.00686]
[1717787035961,0.5649759,68938.0,68937.0,0.00086]
[1717787036204,0.5659759,68938.0,68937.0,0.00886]
[1717787036432,0.59609303,68938.0,68937.0,0.00086]
[1717787036917,0.59809303,68938.0,68937.0,0.00086]
[1717787037137,0.57809303,68938.0,68937.0,0.00086]
[1717787037352,0.59809303,68938.0,68937.0,0.00086]
[1717787037554,0.5699759,68938.0,68937.0,0.00086]
[1717787038226,0.59798709,68938.0,68937.0,0.00086]
[1717787038460,0.5499759,68938.0,68937.0,0.00086]
[1717787040394,0.5699759,68938.0,68937.0,0.00086]
[1717787040611,0.01,68952.0,68937.0,0.00086]
[1717787040612,0.1,68950.0,68938.0,0.2335]
[1717787040836,0.000946,68968.0,68956.0,0.151]
[1717787041066,0.000946,68968.0,68962.0,0.1719]
[1717787041067,0.1,68965.0,68962.0,0.1719]
[1717787041928,0.145007,68962.0,68959.0,0.02176618]
[1717787042146,0.145007,68962.0,68957.0,0.0825]
[1717787042359,0.145007,68962.0,68960.0,0.14511787]
[1717787042360,0.1999189,68961.0,68960.0,0.14511787]
[1717787042573,0.145007,68962.0,68955.0,9.3783]
[1717787042574,0.1,68956.0,68955.0,9.3783]
[1717787042794,0.31724824,68956.0,68955.0,9.3783]
[1717787043003,0.41724824,68956.0,68955.0,9.3783]
[1717787043443,0.07222824,68971.0,68962.0,0.01]
[1717787043663,0.17210677,68970.0,68958.0,0.01]
[1717787043867,0.145005,68963.0,68962.0,0.01]
[1717787044518,0.4782,68973.0,68957.0,0.15]
[1717787044744,0.4782,68973.0,68972.0,0.01]
[1717787044745,0.623184,68973.0,68972.0,0.01]
[1717787044953,0.144984,68973.0,68972.0,0.01]
[1717787045371,0.144984,68973.0,68966.0,0.01]
[1717787045372,0.14441893,68973.0,68966.0,0.01]
[1717787045578,0.145003,68964.0,68963.0,0.01]
[1717787045802,0.21664717,68972.0,68958.0,0.15511787]
[1717787046073,0.02753137,68971.0,68966.0,0.01]
[1717787046294,0.145005,68963.0,68962.0,0.02]
[1717787046498,0.145005,68963.0,68962.0,0.014]
[1717787046726,0.145005,68963.0,68962.0,0.01]
[1717787046952,0.145005,68963.0,68962.0,0.15511787]
[1717787047185,0.145005,68963.0,68962.0,0.01]
[1717787048134,0.146005,68963.0,68962.0,0.016]
[1717787048359,0.146005,68963.0,68962.0,0.02]
[1717787050320,0.001,68963.0,68962.0,0.1911]
[1717787050538,0.001,68963.0,68962.0,0.32621787]
[1717787050744,0.001,68963.0,68962.0,0.33621787]
[1717787050956,0.001,68963.0,68962.0,0.1911]
[1717787051173,0.001,68963.0,68962.0,0.1811]
[1717787051381,0.001,68963.0,68962.0,0.1911]
[1717787051586,0.001,68963.0,68962.0,0.1811]
[1717787051792,0.001,68963.0,68962.0,0.2011]
[1717787052015,0.001,68963.0,68962.0,0.33621787]
[1717787052232,0.001,68963.0,68962.0,0.1911]
[1717787052644,0.001,68963.0,68962.0,0.02]
[1717787052858,0.146005,68963.0,68962.0,0.02]
[1717787053983,0.146005,68963.0,68962.0,0.01]
[1717787053984,0.307005,68963.0,68962.0,0.01]
[1717787054218,0.82253393,68963.0,68962.0,0.01]
[1717787054431,1.20479732,68963.0,68962.0,0.004]
[1717787054634,1.23200386,68963.0,68962.0,0.008]
[1717787055068,1.23200386,68963.0,68962.0,0.004]
[1717787055281,1.23200386,68963.0,68961.0,9.3783]
[1717787055282,0.965235,68962.0,68961.0,9.1324]
[1717787055541,1.3120891,68962.0,68961.0,9.0022]
[1717787055981,1.35963857,68962.0,68961.0,9.0022]
[1717787056198,1.55963857,68962.0,68961.0,9.0022]
[1717787056619,1.56363857,68962.0,68961.0,9.0032]
[1717787057046,1.57763857,68962.0,68961.0,9.0042]
[1717787057262,1.34963857,68962.0,68961.0,9.0022]
[1717787057467,1.56363857,68962.0,68961.0,9.00102358]
[1717787057687,1.37763857,68962.0,68961.0,9.00202358]
[1717787057888,1.57763857,68962.0,68961.0,9.00202358]
[1717787058099,1.30541033,68962.0,68961.0,9.00202358]
[1717787058311,1.41359979,68962.0,68961.0,9.00202358]
[1717787058737,1.68582803,68962.0,68961.0,9.00202358]
[1717787058943,1.68582803,68962.0,68961.0,8.95338304]
[1717787058944,2.05640133,68962.0,68961.0,8.95338304]
[1717787059931,2.05640133,68962.0,68961.0,8.48393017]
[1717787059932,2.13188846,68962.0,68961.0,8.48393017]
[1717787060157,3.65237557,68962.0,68961.0,8.48293017]
[1717787060371,3.78384978,68962.0,68961.0,8.43793017]
[1717787060587,3.79784978,68962.0,68961.0,8.42193017]
[1717787060814,2.86749607,68962.0,68961.0,8.3709353]
[1717787061026,2.59617126,68962.0,68961.0,8.3709353]
[1717787061242,1.73264426,68962.0,68961.0,8.3719353]
[1717787061514,1.8624166,68962.0,68961.0,8.3719353]
[1717787061741,1.71864426,68962.0,68961.0,8.3709353]
[1717787061977,1.92123492,68962.0,68961.0,8.33229139]
[1717787062202,2.48470367,68962.0,68961.0,7.19643704]
[1717787062432,2.48470367,68962.0,68961.0,7.19523742]
[1717787062433,2.39207778,68962.0,68961.0,7.19523742]
[1717787062897,3.74593778,68962.0,68961.0,7.19523742]
[1717787063100,3.77393778,68962.0,68961.0,7.19609742]
[1717787063326,3.79629869,68962.0,68961.0,7.12928018]
[1717787063532,3.86485596,68962.0,68961.0,7.11415097]
[1717787063738,2.48299596,68962.0,68961.0,7.11415097]
[1717787063941,2.51099596,68962.0,68961.0,7.11147591]
[1717787064145,4.91483496,68962.0,68961.0,7.11147591]
[1717787064343,4.90083496,68962.0,68961.0,7.03147591]
[1717787064781,2.51401088,68962.0,68961.0,7.03147591]
[1717787065009,2.47463505,68962.0,68961.0,7.03147591]
[1717787065453,3.70106653,68962.0,68961.0,7.03147591]
[1717787065673,3.55532905,68962.0,68961.0,7.03147591]
[1717787065913,2.4480147,68962.0,68961.0,7.03147591]
[1717787066125,3.44004379,68962.0,68961.0,7.03147591]
[1717787066344,2.91100479,68962.0,68961.0,7.03147591]
[1717787066581,2.89700479,68962.0,68961.0,7.03147591]
[1717787066806,2.09774948,68962.0,68961.0,7.03147591]
[1717787067043,1.23076574,68962.0,68961.0,7.03147591]
[1717787067250,0.73479123,68962.0,68961.0,7.03147591]
[1717787067452,0.74879123,68962.0,68961.0,7.03147591]
[1717787067660,0.73479123,68962.0,68961.0,7.01806166]
[1717787067869,0.72079123,68962.0,68961.0,7.01806166]
[1717787068081,0.73316353,68962.0,68961.0,7.01806166]
[1717787068292,1.66557753,68962.0,68961.0,7.01806166]
[1717787068498,1.71188838,68962.0,68961.0,7.01806166]
[1717787069374,3.18882938,68962.0,68961.0,7.01656167]
[1717787069627,3.44144286,68962.0,68961.0,7.01656167]
[1717787069851,3.44144286,68962.0,68961.0,6.99568417]
[1717787069852,1.90122772,68962.0,68961.0,6.99568417]
[1717787070064,1.46821424,68962.0,68961.0,6.99568417]
[1717787070280,1.07946424,68962.0,68961.0,6.99568417]
[1717787070501,0.81745024,68962.0,68961.0,6.99568417]
[1717787070763,0.77113939,68962.0,68961.0,6.99568417]
[1717787071001,0.75713939,68962.0,68961.0,6.99568417]
[1717787071236,0.77113939,68962.0,68961.0,6.99568417]
[1717787071457,0.75713939,68962.0,68961.0,6.99568417]
[1717787071900,0.36712539,68962.0,68961.0,6.99568417]
[1717787072169,0.20556625,68962.0,68961.0,7.24395378]
[1717787072394,0.1573793,68962.0,68961.0,7.24395378]
[1717787073027,0.1713793,68962.0,68961.0,7.24395378]
[1717787073239,0.61819899,68962.0,68961.0,6.99568417]
[1717787073466,0.62319899,68962.0,68961.0,6.99568417]
[1717787073674,0.60919899,68962.0,68961.0,6.99568417]
[1717787073883,0.60419899,68962.0,68961.0,6.99568417]
[1717787074088,0.60519899,68962.0,68961.0,6.99568417]
[1717787074303,1.22343319,68962.0,68961.0,6.99568417]
[1717787074520,1.33962244,68962.0,68961.0,6.99568417]
[1717787074757,1.13962244,68962.0,68961.0,6.99568417]
[1717787075185,1.33962244,68962.0,68961.0,5.49578417]
[1717787075414,1.88203644,68962.0,68961.0,0.99608417]
[1717787075632,0.55115,68961.0,68960.0,7.73128881]
[1717787075848,0.86861514,68961.0,68960.0,7.73128881]
[1717787076025,0.96591636,68961.0,68960.0,7.72402881]
[1717787076261,1.37156514,68961.0,68960.0,7.72402881]
[1717787076500,1.17156514,68961.0,68960.0,7.70571472]
[1717787076737,1.08616436,68961.0,68960.0,7.70571472]
[1717787076940,0.80286314,68961.0,68960.0,7.70571472]
[1717787077362,1.01686314,68961.0,68960.0,7.70571472]
[1717787077555,0.81686314,68961.0,68960.0,7.70571472]
[1717787077761,1.01686314,68961.0,68960.0,7.70571472]
[1717787080413,1.01686314,68961.0,68960.0,7.60941472]
[1717787080618,1.01686314,68961.0,68960.0,7.59341472]
[1717787081046,1.04519146,68961.0,68960.0,7.59341472]
[1717787081688,1.17688995,68961.0,68960.0,7.59341472]
[1717787081865,1.03119146,68961.0,68960.0,7.56863506]
[1717787082002,1.03119146,68961.0,68960.0,7.55474236]
[1717787082207,1.03119146,68961.0,68960.0,7.47259027]
[1717787082208,1.16289869,68961.0,68960.0,7.47259027]
[1717787082413,1.00286314,68961.0,68960.0,7.46959027]
[1717787083218,1.00286314,68961.0,68960.0,7.46827027]
[1717787083425,1.00286314,68961.0,68960.0,7.46233027]
[1717787083426,1.01686314,68961.0,68960.0,7.46233027]
[1717787083839,1.23156314,68961.0,68960.0,7.46233027]
[1717787084051,0.93156314,68961.0,68960.0,7.46233027]
[1717787084277,0.44421514,68961.0,68960.0,7.46233027]
[1717787084509,0.29755569,68961.0,68960.0,7.46233027]
[1717787084794,0.39755569,68961.0,68960.0,7.46233027]
[1717787085029,0.74995569,68961.0,68960.0,7.46233027]
[1717787085249,0.58261514,68961.0,68960.0,7.46233027]
[1717787085662,0.44421514,68961.0,68960.0,7.46233027]
[1717787085867,0.19880569,68961.0,68960.0,7.46233027]
[1717787086077,0.17080569,68961.0,68960.0,7.62193027]
[1717787086276,0.02638676,68961.0,68960.0,7.63379988]
[1717787086495,0.04038676,68961.0,68960.0,7.62318027]
[1717787086656,0.05438676,68961.0,68960.0,7.62318027]
[1717787086861,0.04038676,68961.0,68960.0,7.63379988]
[1717787087068,0.02638676,68961.0,68960.0,7.63379988]
[1717787087243,0.04038676,68961.0,68960.0,7.63379988]
[1717787087425,0.17080569,68961.0,68960.0,7.63254988]
[1717787087839,0.17180569,68961.0,68960.0,7.62393027]
[1717787088055,0.24403393,68961.0,68960.0,7.62393027]
[1717787088255,0.24403393,68961.0,68960.0,7.46433027]
[1717787088466,0.18580569,68961.0,68960.0,7.46433027]
[1717787088902,0.24403393,68961.0,68960.0,7.46433027]
[1717787089096,0.24303393,68961.0,68960.0,7.46233027]
[1717787089509,0.25803393,68961.0,68960.0,7.46333027]
[1717787089972,0.25703393,68961.0,68960.0,7.46233027]
[1717787090172,0.18480569,68961.0,68960.0,7.46233027]
[1717787090375,0.18480569,68961.0,68960.0,7.62893027]
[1717787090570,0.17080569,68961.0,68960.0,7.62893027]
[1717787091406,0.18480569,68961.0,68960.0,7.62893027]
[1717787091579,0.19880569,68961.0,68960.0,7.62893027]
[1717787092164,0.18480569,68961.0,68960.0,7.62893027]
[1717787092575,0.19880569,68961.0,68960.0,7.62893027]
[1717787092781,0.18480569,68961.0,68960.0,7.62893027]
[1717787092990,0.19880569,68961.0,68960.0,7.62893027]
[1717787093448,0.18480569,68961.0,68960.0,7.62893027]
[1717787093665,0.19880569,68961.0,68960.0,7.62893027]
[1717787093998,0.19880569,68961.0,68960.0,7.63954988]
[1717787094659,0.03116606,68962.0,68960.0,7.71899988]
[1717787094859,0.289987,68969.0,68968.0,0.01061961]
[1717787094860,0.434979,68969.0,68968.0,0.01061961]
[1717787095062,0.434979,68969.0,68968.0,0.25666961]
[1717787095320,0.144992,68969.0,68968.0,0.25666961]
[1717787095520,0.144992,68969.0,68968.0,0.2915296]
[1717787095744,0.144992,68969.0,68968.0,0.25666961]
[1717787097015,0.145992,68969.0,68968.0,0.25666961]
[1717787097221,0.148992,68969.0,68968.0,0.25666961]
[1717787098288,0.000946,68978.0,68977.0,0.01061961]
[1717787098497,0.000946,68978.0,68977.0,0.25551961]
[1717787098696,0.145919,68978.0,68977.0,0.25676961]
[1717787098811,0.435866,68978.0,68977.0,0.25676961]
[1717787099013,0.58028493,68978.0,68977.0,0.2449]
[1717787100098,0.59028493,68978.0,68977.0,0.2559]
[1717787100320,0.59028493,68978.0,68977.0,0.001]
[1717787100522,0.434926,68977.0,68976.0,5.38603027]
[1717787100670,0.65157317,68977.0,68976.0,7.46233027]
[1717787100873,0.94152417,68977.0,68976.0,7.46233027]
[1717787102206,1.49152517,68977.0,68976.0,7.46233027]
[1717787102639,1.53818462,68977.0,68976.0,7.46233027]
[1717787103094,0.91595538,68977.0,68976.0,7.46233027]
[1717787103293,0.88129593,68977.0,68976.0,7.62453027]
[1717787103506,0.88129593,68977.0,68976.0,7.46433027]
[1717787103712,0.86929593,68977.0,68976.0,7.46333027]
[1717787104143,0.88129593,68977.0,68976.0,7.46433027]
[1717787104370,0.86929593,68977.0,68976.0,7.46333027]
[1717787104753,0.89042851,68977.0,68976.0,7.46333027]
[1717787105160,0.89042851,68977.0,68976.0,7.46233027]
[1717787105508,0.90442851,68977.0,68976.0,7.46333027]
[1717787105929,0.91842851,68977.0,68976.0,7.46433027]
[1717787107263,0.91842851,68977.0,68976.0,7.70449988]
[1717787107264,0.19410758,68977.0,68976.0,7.70449988]
[1717787108742,0.18010758,68977.0,68976.0,7.70349988]
[1717787108907,0.16610758,68977.0,68976.0,7.70249988]
[1717787109114,0.17410758,68977.0,68976.0,7.70349988]
[1717787109315,0.18110758,68977.0,68976.0,7.70449988]
[1717787109525,0.16610758,68977.0,68976.0,7.70249988]
[1717787109935,0.17410758,68977.0,68976.0,7.69163027]
[1717787110132,0.60519801,68977.0,68976.0,7.54233027]
[1717787111172,0.60519801,68977.0,68976.0,7.55294988]
[1717787111569,0.17082808,68977.0,68976.0,7.55419988]
[1717787114051,0.60519801,68977.0,68976.0,7.46433027]
[1717787114206,0.17082808,68977.0,68976.0,7.47494988]
[1717787114462,0.17082808,68977.0,68976.0,7.47619988]
[1717787117726,0.03613258,68977.0,68976.0,7.86711881]
[1717787117920,0.144971,68980.0,68979.0,0.24836961]
[1717787119785,0.145971,68980.0,68979.0,0.25736961]
[1717787119910,0.146971,68980.0,68979.0,0.26436961]
[1717787120323,0.147971,68980.0,68979.0,0.27336961]
[1717787120736,0.145971,68980.0,68979.0,0.25536961]
[1717787121356,0.145971,68980.0,68979.0,0.24836961]
[1717787121652,0.144971,68980.0,68979.0,0.40890473]
[1717787121851,0.144971,68980.0,68979.0,0.69844153]
[1717787122060,0.144971,68980.0,68979.0,0.53340299]
[1717787122270,0.144971,68980.0,68978.0,7.46233027]
[1717787122271,0.144971,68979.0,68978.0,7.46233027]
[1717787122483,0.36161817,68979.0,68978.0,7.46233027]
[1717787123330,0.144971,68979.0,68978.0,7.47419988]
[1717787123530,0.4782,68991.0,68990.0,0.01186961]
[1717787123890,0.144952,68988.0,68987.0,0.00125]
[1717787124107,0.50708524,68988.0,68987.0,0.01125]
[1717787124892,0.50708524,68988.0,68987.0,0.01186961]
[1717787125501,0.434857,68988.0,68987.0,0.01186961]
[1717787126959,0.439857,68988.0,68987.0,0.01186961]
[1717787127368,0.439857,68988.0,68987.0,0.01125]
[1717787127369,0.435857,68988.0,68987.0,0.01125]
[1717787127578,0.438857,68988.0,68987.0,0.01186961]
[1717787127924,0.45522502,68988.0,68987.0,0.01186961]
[1717787128312,0.45922502,68988.0,68987.0,0.01186961]
[1717787128717,0.46017102,68988.0,68987.0,0.01186961]